fUSD/lending_fUSD_20250209
["ID","MTS","AMOUNT","RATE_DAILY","PERIOD"]
[352477140,1739131846825,-179.88,0.00016813,2]
[352477141,1739131846834,-236.52,0.00016823,2]
[352477142,1739131846844,-500.0,0.00016899,2]
[352477143,1739131846854,-500.0,0.000169,6]
[352477144,1739131846864,-1843.0,0.00016986,2]
[352477145,1739131846873,-2478.8,0.00016986,2]
[352477146,1739131846882,-175.75,0.00016986,2]
[352477147,1739131846891,-650.0,0.00017,2]
[352477148,1739131846901,-8645.86328497,0.00017049,2]
[352477149,1739131846913,-16820.37082702,0.00017049,2]
[352477150,1739131846922,-12986.12064169,0.000171,2]
[352477151,1739131846933,-497.73,0.00017123,2]
[352477152,1739131846943,-1278.27821044,0.00017175,2]
[352477153,1739131846953,-500.0,0.00017259,2]
[352477154,1739131846962,-1278.27821044,0.00017564,2]
[352477155,1739131846972,-1300.0,0.00017608,2]
[352477156,1739131846981,-1400.0,0.00017608,2]
[352477157,1739131846991,-1190.2242051,0.0001764,2]
[352477158,1739131847001,-25466.23411199,0.00017762,2]
[352477159,1739131847011,-12986.12064169,0.000178,2]
[352477160,1739131847020,-1000.0,0.00017808,4]
[352477161,1739131847030,-1278.27821044,0.00017953,2]
[352477162,1739131847040,-150.0,0.00018,2]
[352477163,1739131847050,-150.0,0.00018,2]
[352477164,1739131847059,-150.0,0.00018,2]
[352477165,1739131847068,-150.0,0.00018,2]
[352477166,1739131847077,-150.0,0.00018,2]
[352477167,1739131847087,-150.0,0.00018032,2]
[352477168,1739131847097,-150.0,0.00018063,2]
[352477169,1739131847107,-150.0,0.00018065,2]
[352477170,1739131847116,-1000.0,0.00018082,4]
[352477171,1739131847126,-2000.0,0.00018082,2]
[352477172,1739131847135,-200.0,0.00018082,2]
[352477173,1739131847145,-150.0,0.00018095,2]
[352477174,1739131847154,-150.0,0.00018111,2]
[352477175,1739131847164,-150.0,0.00018127,2]
[352477176,1739131847174,-150.0,0.00018129,2]
[352477177,1739131847184,-150.0,0.00018159,2]
[352477178,1739131847194,-150.0,0.0001819,2]
[352477179,1739131847204,-150.0,0.00018194,2]
[352477180,1739131847215,-150.0,0.00018222,2]
[352477181,1739131847226,-150.0,0.00018222,2]
[352477182,1739131847236,-150.0,0.00018254,2]
[352477183,1739131847247,-150.0,0.00018258,2]
[352477184,1739131847258,-2073.0,0.00018265,2]
[352477185,1739131847268,-150.0,0.00018286,2]
[352477186,1739131847278,-150.0,0.00018317,2]
[352477187,1739131847287,-150.0,0.00018323,2]
[352477188,1739131847296,-150.0,0.00018333,2]
[352477189,1739131847305,-150.0,0.00018333,2]
[352477190,1739131847314,-1278.27821044,0.00018343,2]
[352477191,1739131847326,-150.0,0.00018349,2]
[352477192,1739131847336,-1000.0,0.00018356,4]
[352477193,1739131847345,-150.0,0.00018381,2]
[352477194,1739131847354,-150.0,0.00018387,2]
[352477195,1739131847363,-150.0,0.00018413,2]
[352477196,1739131847372,-692.26,0.0001843,2]
[352477197,1739131847381,-150.0,0.00018444,2]
[352477198,1739131847391,-150.0,0.00018444,2]
[352477199,1739131847401,-150.0,0.00018452,2]
[352477200,1739131847411,-2073.0,0.00018453,2]
[352477201,1739131847421,-15965.64236912,0.00018475,2]
[352477202,1739131847462,-530.75000011,0.00018475,2]
[352477203,1739131847474,-3029.10425445,0.00018475,2]
[352477204,1739131847486,-5940.73748831,0.00018475,2]
[352477205,1739131847496,-150.0,0.00018476,2]
[352477206,1739131847506,-12986.12064169,0.000185,2]
[352477207,1739131847516,-150.0,0.00018508,2]
[352477208,1739131847526,-150.0,0.00018516,2]
[352477209,1739131847537,-150.0,0.0001854,2]
[352477210,1739131847547,-150.0,0.00018556,2]
[352477211,1739131847557,-150.0,0.00018571,2]
[352477212,1739131847567,-150.0,0.00018581,2]
[352477213,1739131847578,-154.53,0.000186,2]
[352477214,1739131847587,-154.53,0.000186,2]
[352477215,1739131847597,-150.0,0.00018603,2]
[352477216,1739131847607,-1000.0,0.0001863,4]
[352477217,1739131847617,-150.0,0.00018635,2]
[352477218,1739131847627,-2073.0,0.00018642,2]
[352477219,1739131847637,-150.0,0.00018645,2]
[352477220,1739131847646,-150.0,0.00018667,2]
[352477221,1739131847656,-150.0,0.00018667,2]
[352477222,1739131847666,-150.0,0.00018667,2]
[352477223,1739131847676,-150.0,0.00018698,2]
[352477224,1739131847686,-1300.0,0.00018704,2]
[352477225,1739131847696,-1400.0,0.00018704,2]
[352477226,1739131847706,-700.0,0.00018704,2]
[352477227,1739131847715,-150.0,0.0001871,2]
[352477228,1739131847725,-150.0,0.0001873,2]
[352477229,1739131847735,-1278.27821044,0.00018732,2]
[352477230,1739131847745,-2000.0,0.00018751,2]
[352477231,1739131847755,-150.0,0.00018762,2]
[352477232,1739131847764,-150.0,0.00018774,2]
[352477233,1739131847774,-150.0,0.00018778,2]
[352477234,1739131847784,-150.0,0.00018794,2]
[352477235,1739131847794,-150.0,0.00018825,2]
[352477236,1739131847803,-2073.0,0.0001883,2]
[352477237,1739131847813,-739.32514445,0.0001883,2]
[352477238,1739131847823,-150.0,0.00018839,2]
[352477239,1739131847831,-150.0,0.00018857,2]
[352477240,1739131847842,-150.0,0.00018889,2]
[352477241,1739131847853,-150.0,0.00018889,2]
[352477242,1739131847864,-150.0,0.00018903,2]
[352477243,1739131847875,-1000.0,0.00018904,4]
[352477244,1739131847886,-150.0,0.00018921,2]
[352477245,1739131847897,-150.0,0.00018952,2]
[352477246,1739131847908,-150.0,0.00018968,2]
[352477247,1739131847918,-150.0,0.00018984,2]
[352477248,1739131847928,-700.0,0.00019,2]
[352477249,1739131847938,-150.0,0.00019,2]
[352477250,1739131847948,-150.0,0.00019,2]
[352477251,1739131847960,-150.0,0.00019016,2]
[352477252,1739131847970,-2073.0,0.00019018,2]
[352477253,1739131847981,-150.0,0.00019032,2]
[352477254,1739131847991,-150.0,0.00019048,2]
[352477255,1739131848002,-150.0,0.00019079,2]
[352477256,1739131848012,-150.0,0.00019097,2]
[352477257,1739131848023,-150.0,0.00019111,2]
[352477258,1739131848033,-150.0,0.00019111,2]
[352477259,1739131848047,-1278.27821044,0.00019121,2]
[352477260,1739131848063,-150.0,0.00019143,2]
[352477261,1739131848073,-150.0,0.00019161,2]
[352477262,1739131848083,-150.0,0.00019175,2]
[352477263,1739131848094,-350.0,0.00019178,2]
[352477264,1739131848104,-350.0,0.00019178,2]
[352477265,1739131848114,-304.88777439,0.00019178,2]
[352477266,1739131848125,-1000.0,0.00019178,4]
[352477267,1739131848136,-150.0,0.00019178,2]
[352477268,1739131848147,-25466.23411199,0.00019187,2]
[352477269,1739131848157,-12986.12064169,0.000192,2]
[352477270,1739131848168,-150.0,0.00019206,4]
[352477271,1739131848178,-2073.0,0.00019207,2]
[352477272,1739131848189,-150.0,0.00019222,4]
[352477273,1739131848199,-150.0,0.00019226,4]
[352477274,1739131848212,-501.05959485,0.00019233,3]
[352477275,1739131848223,-150.0,0.00019238,4]
[352477276,1739131848233,-812.88,0.00019242,30]
[352477277,1739131848245,-150.0,0.0001927,4]
[352477278,1739131848257,-150.0,0.0001929,4]
[352477279,1739131848268,-384.54681952,0.00019296,2]
[352477280,1739131848279,-150.0,0.00019302,4]
[352477281,1739131848289,-150.0,0.00019333,4]
[352477282,1739131848300,-150.0,0.00019333,4]
[352477283,1739131848311,-150.0,0.00019333,4]
[352477284,1739131848321,-150.0,0.00019355,4]
[352477285,1739131848334,-150.0,0.00019365,4]
[352477286,1739131848345,-2073.0,0.00019395,2]
[352477287,1739131848356,-150.0,0.00019397,4]
[352477288,1739131848367,-1100.0,0.000194,7]
[352477289,1739131848378,-150.0,0.00019419,4]
[352477290,1739131848389,-2000.0,0.0001942,2]
[352477291,1739131848398,-150.0,0.00019429,4]
[352477292,1739131848408,-150.0,0.00019444,4]
[352477293,1739131848418,-1000.0,0.00019452,4]
[352477294,1739131848428,-150.0,0.0001946,4]
[352477295,1739131848438,-1999.0,0.00019479,2]
[352477296,1739131848448,-1999.0,0.00019479,2]
[352477297,1739131848460,-1999.0,0.00019479,2]
[352477298,1739131848469,-1999.0,0.00019479,2]
[352477299,1739131848481,-325.2,0.00019479,2]
[352477300,1739131848492,-150.0,0.00019484,4]
[352477301,1739131848501,-150.0,0.00019492,4]
[352477302,1739131848511,-1600.0,0.000195,7]
[352477303,1739131848522,-1278.27821044,0.00019511,2]
[352477304,1739131848532,-150.0,0.00019524,4]
[352477305,1739131848542,-150.0,0.00019548,4]
[352477306,1739131848554,-150.0,0.00019556,4]
[352477307,1739131848564,-150.0,0.00019556,4]
[352477308,1739131848574,-150.0,0.00019587,4]
[352477309,1739131848585,-2200.0,0.000196,7]
[352477310,1739131848596,-1101.21836,0.000196,2]
[352477311,1739131848606,-150.0,0.00019613,4]
[352477312,1739131848616,-150.0,0.00019619,4]
[352477313,1739131848626,-500.0,0.00019641,2]
[352477314,1739131848635,-500.0,0.00019641,2]
[352477315,1739131848646,-500.0,0.00019641,2]
[352477316,1739131848656,-500.0,0.00019642,2]
[352477317,1739131848673,-2000.0,0.00019642,2]
[352477318,1739131848684,-500.0,0.00019642,2]
[352477319,1739131848695,-500.0,0.00019642,2]
[352477320,1739131848705,-500.0,0.00019642,2]
[352477321,1739131848716,-500.0,0.00019642,2]
[352477322,1739131848726,-200.0,0.00019642,2]
[352477323,1739131848737,-150.0,0.00019651,4]
[352477324,1739131848746,-150.0,0.00019667,4]
[352477325,1739131848758,-150.0,0.00019667,4]
[352477326,1739131848767,-384.54681953,0.00019677,2]
[352477327,1739131848778,-150.0,0.00019677,4]
[352477328,1739131848788,-150.0,0.00019683,4]
[352477329,1739131848799,-150.0,0.00019683,2]
[352477330,1739131848810,-505.1300128,0.00019699,3]
[352477331,1739131848820,-3000.0,0.000197,2]
[352477332,1739131848830,-2700.0,0.000197,7]
[352477333,1739131848840,-4046.81513113,0.00019714,2]
[352477334,1739131848850,-150.0,0.00019714,4]
[352477335,1739131848861,-1000.0,0.00019726,4]
[352477336,1739131848872,-150.0,0.00019742,4]
[352477337,1739131848883,-150.0,0.00019746,4]
[352477338,1739131848893,-4046.81513099,0.00019756,2]
[352477339,1739131848904,-300.0,0.0001977,2]
[352477340,1739131848914,-150.0,0.00019778,4]
[352477341,1739131848925,-150.0,0.00019778,4]
[352477342,1739131848937,-1000.0,0.00019799,15]
[352477343,1739131848952,-1470.98,0.00019799,2]
[352477344,1739131848968,-1300.0,0.000198,2]
[352477345,1739131848979,-1400.0,0.000198,2]
[352477346,1739131848989,-58725.41640008,0.000198,2]
[352477347,1739131849004,-9683.3,0.000198,2]
[352477348,1739131849016,-4868.24355225,0.000198,2]
[352477349,1739131872827,1384.383,8.973e-05,2]
[352477350,1739131885714,746.82674799,8.836e-05,2]
[352477356,1739132359814,-6570.99793049,8.698e-05,2]
[352477357,1739132359839,-3429.00206951,8.699e-05,2]
[352477358,1739132367430,-2355.22163049,8.699e-05,2]
[352477359,1739132367453,-339.5404,8.699e-05,2]
[352477360,1739132367478,-249.00198998,8.699e-05,2]
[352477361,1739132367501,-1186.97475201,8.836e-05,2]
[352477362,1739132416713,-500.0,8.851e-05,2]
[352477363,1739132430611,-10000.0,8.973e-05,2]
[352477364,1739132432545,-6012.6439,8.973e-05,2]
[352477365,1739132469413,3987.3561,8.836e-05,2]
[352477366,1739132479412,-2282.5101,8.836e-05,2]
[352477369,1739132729994,-824.7564747,8.813e-05,2]
[352477370,1739132730017,-9175.2435253,8.836e-05,2]
[352477387,1739133031570,-824.7564747,8.836e-05,2]
[352477388,1739133031580,-972.0847,8.973e-05,2]
[352477389,1739133031592,-200.0,9.2e-05,3]
[352477390,1739133031601,-500.0,9.3e-05,3]
[352477391,1739133031610,-800.0,9.4e-05,3]
[352477392,1739133031618,-173.67,9.463e-05,2]
[352477393,1739133031628,-171.7,9.467e-05,2]
[352477394,1739133031637,-1100.0,9.5e-05,3]
[352477395,1739133031646,-1300.0,9.6e-05,3]
[352477396,1739133031656,-200.0,9.7e-05,3]
[352477397,1739133031665,-200.0,9.8e-05,3]
[352477398,1739133031675,-200.0,9.9e-05,3]
[352477399,1739133031684,-300.0,9.972e-05,2]
[352477400,1739133031693,-16137.60646875,9.973e-05,2]
[352477401,1739133031708,-6978.39353125,9.973e-05,2]
[352477402,1739133031718,-161.38491273,9.973e-05,2]
[352477403,1739133031727,-501.27928532,9.973e-05,2]
[352477404,1739133031736,-500.0,9.973e-05,2]
[352477405,1739133031745,-150.0,9.998e-05,2]
[352477406,1739133031754,-1177.64376099,9.999e-05,3]
[352477407,1739133031763,-500.0,9.999e-05,2]
[352477408,1739133031772,-500.0,9.999e-05,2]
[352477409,1739133031782,-500.0,9.999e-05,2]
[352477410,1739133031791,-500.0,9.999e-05,2]
[352477411,1739133031799,-500.0,9.999e-05,2]
[352477412,1739133031808,-588.9,9.999e-05,2]
[352477413,1739133031818,-500.0,9.999e-05,2]
[352477414,1739133031827,-500.0,9.999e-05,2]
[352477415,1739133031835,-500.0,9.999e-05,2]
[352477416,1739133031844,-500.0,9.999e-05,2]
[352477417,1739133031853,-500.0,9.999e-05,2]
[352477418,1739133031862,-500.0,9.999e-05,2]
[352477419,1739133031871,-500.0,9.999e-05,2]
[352477420,1739133031881,-500.0,9.999e-05,2]
[352477421,1739133031890,-500.0,9.999e-05,2]
[352477422,1739133031899,-354.64,9.999e-05,2]
[352477423,1739133031908,-500.0,9.999e-05,2]
[352477424,1739133031917,-500.0,9.999e-05,2]
[352477425,1739133031926,-500.0,9.999e-05,2]
[352477426,1739133031935,-500.0,9.999e-05,2]
[352477427,1739133031944,-500.0,9.999e-05,2]
[352477428,1739133031954,-500.0,9.999e-05,2]
[352477429,1739133031963,-547.79,9.999e-05,2]
[352477430,1739133031972,-500.0,9.999e-05,2]
[352477431,1739133031981,-517.499639,9.999e-05,2]
[352477432,1739133031991,-500.0,9.999e-05,2]
[352477433,1739133032000,-500.0,9.999e-05,2]
[352477434,1739133032009,-500.0,9.999e-05,2]
[352477435,1739133032018,-500.0,9.999e-05,2]
[352477436,1739133032027,-276.49791597,9.999e-05,2]
[352477437,1739133032035,-500.0,9.999e-05,2]
[352477438,1739133032044,-500.0,9.999e-05,2]
[352477439,1739133032053,-500.0,9.999e-05,2]
[352477440,1739133032062,-500.0,9.999e-05,2]
[352477441,1739133032071,-500.0,9.999e-05,2]
[352477442,1739133032081,-51552.30502294,0.0001,2]
[352477443,1739133032092,-467.6,0.0001,2]
[352477444,1739133032111,-481.80514232,0.0001,2]
[352477445,1739133032123,-67423.64139986,0.0001,2]
[352477447,1739133032134,-1456.56667831,0.0001,2]
[352477449,1739133032145,-994.8,0.0001,2]
[352477451,1739133032157,-138083.46166164,0.0001,2]
[352477454,1739133032169,-662.75,0.0001,2]
[352477456,1739133032181,-1388.60156239,0.0001,2]
[352477508,1739133037482,-500.0,9.999e-05,2]
[352477509,1739133037491,-500.0,9.999e-05,2]
[352477510,1739133037502,-500.0,9.999e-05,2]
[352477511,1739133037513,-500.0,9.999e-05,2]
[352477512,1739133037524,-500.0,9.999e-05,2]
[352477513,1739133037533,-500.0,9.999e-05,2]
[352477514,1739133037543,-107276.84,0.0001,2]
[352477515,1739133037560,-22327820.88474418,0.0001,2]
[352477516,1739133037569,-1000.0,0.0001,2]
[352477517,1739133037578,-200.0,0.0001,3]
[352477518,1739133037589,-908.85395611,0.0001,2]
[352477519,1739133037600,-6868.73869399,0.0001,2]
[352477520,1739133037610,-500.0,0.00010136,2]
[352477521,1739133037619,-500.0,0.00010136,2]
[352477522,1739133037628,-500.0,0.00010136,2]
[352477523,1739133037638,-500.0,0.00010136,2]
[352477524,1739133037648,-500.0,0.00010136,2]
[352477525,1739133037656,-588.9,0.00010136,2]
[352477526,1739133037668,-500.0,0.00010136,2]
[352477527,1739133037678,-500.0,0.00010136,2]
[352477528,1739133037689,-500.0,0.00010136,2]
[352477529,1739133037698,-500.0,0.00010136,2]
[352477530,1739133037708,-500.0,0.00010136,2]
[352477531,1739133037717,-500.0,0.00010136,2]
[352477532,1739133037726,-500.0,0.00010136,2]
[352477533,1739133037735,-602.85,0.00010136,2]
[352477534,1739133037745,-500.0,0.00010136,2]
[352477535,1739133037755,-500.0,0.00010136,2]
[352477536,1739133037765,-611.87,0.00010136,2]
[352477537,1739133037774,-500.0,0.00010136,2]
[352477538,1739133037784,-547.79,0.00010136,2]
[352477539,1739133037793,-500.0,0.00010136,2]
[352477540,1739133037802,-517.499639,0.00010136,2]
[352477541,1739133037810,-639.93,0.00010136,2]
[352477542,1739133037820,-492.9,0.00010136,2]
[352477544,1739133037829,-500.0,0.00010136,2]
[352477546,1739133037838,-500.0,0.00010136,2]
[352477548,1739133037849,-500.0,0.00010136,2]
[352477549,1739133037859,-500.0,0.00010136,2]
[352477550,1739133037868,-186.31132429,0.00010136,2]
[352477551,1739133037877,-556.77,0.00010273,2]
[352477552,1739133037889,-500.0,0.00010273,2]
[352477553,1739133037898,-500.0,0.00010273,2]
[352477554,1739133037907,-500.0,0.00010273,2]
[352477555,1739133037917,-500.0,0.00010273,2]
[352477556,1739133037927,-588.9,0.00010273,2]
[352477557,1739133037936,-500.0,0.00010273,2]
[352477558,1739133037945,-500.0,0.00010273,2]
[352477559,1739133037954,-500.0,0.00010273,2]
[352477560,1739133037963,-505.03,0.00010273,2]
[352477561,1739133037972,-500.0,0.00010273,2]
[352477562,1739133037982,-500.0,0.00010273,2]
[352477563,1739133037991,-500.0,0.00010273,2]
[352477564,1739133038000,-500.0,0.00010273,2]
[352477565,1739133038009,-500.0,0.00010273,2]
[352477566,1739133038018,-500.0,0.00010273,2]
[352477567,1739133038028,-547.79,0.00010273,2]
[352477568,1739133038040,-500.0,0.00010273,2]
[352477569,1739133038049,-517.499639,0.00010273,2]
[352477570,1739133038058,-500.0,0.00010273,2]
[352477571,1739133038067,-500.0,0.00010273,2]
[352477572,1739133038077,-500.0,0.00010273,2]
[352477573,1739133038086,-500.0,0.00010273,2]
[352477574,1739133038095,-500.0,0.0001041,2]
[352477575,1739133038106,-500.0,0.0001041,2]
[352477576,1739133038117,-500.0,0.0001041,2]
[352477577,1739133038126,-500.0,0.0001041,2]
[352477578,1739133038137,-588.9,0.0001041,2]
[352477579,1739133038147,-500.0,0.0001041,2]
[352477580,1739133038157,-410.14,0.0001041,2]
[352477581,1739133038166,-500.0,0.0001041,2]
[352477582,1739133038175,-500.0,0.0001041,2]
[352477583,1739133038185,-500.0,0.0001041,2]
[352477584,1739133038195,-500.0,0.0001041,2]
[352477585,1739133038204,-500.0,0.0001041,2]
[352477586,1739133038213,-500.0,0.0001041,2]
[352477587,1739133038222,-500.0,0.0001041,2]
[352477588,1739133038231,-547.79,0.0001041,2]
[352477589,1739133038241,-500.0,0.0001041,2]
[352477590,1739133038251,-517.499639,0.0001041,2]
[352477591,1739133038260,-500.0,0.0001041,2]
[352477592,1739133038269,-500.0,0.0001041,2]
[352477593,1739133038278,-1001.0,0.000105,2]
[352477594,1739133038287,-500.0,0.00010547,2]
[352477595,1739133038296,-500.0,0.00010547,2]
[352477596,1739133038306,-500.0,0.00010547,2]
[352477597,1739133038315,-500.0,0.00010547,2]
[352477598,1739133038324,-588.9,0.00010547,2]
[352477599,1739133038334,-500.0,0.00010547,2]
[352477600,1739133038343,-500.0,0.00010547,2]
[352477601,1739133038352,-500.0,0.00010547,2]
[352477602,1739133038362,-500.0,0.00010547,2]
[352477603,1739133038372,-166.73,0.00010547,2]
[352477604,1739133038381,-500.0,0.00010547,2]
[352477605,1739133038390,-500.0,0.00010547,2]
[352477606,1739133038400,-234.39,0.00010547,2]
[352477607,1739133038409,-547.79,0.00010547,2]
[352477608,1739133038419,-299.47,0.00010547,2]
[352477609,1739133038428,-517.499639,0.00010547,2]
[352477610,1739133038437,-500.0,0.00010547,2]
[352477611,1739133038447,-500.0,0.00010547,2]
[352477612,1739133038458,-500.0,0.00010684,2]
[352477613,1739133038468,-500.0,0.00010684,2]
[352477614,1739133038477,-500.0,0.00010684,2]
[352477615,1739133038486,-500.0,0.00010684,2]
[352477616,1739133038495,-588.9,0.00010684,2]
[352477617,1739133038504,-574.18,0.00010684,2]
[352477618,1739133038515,-500.0,0.00010684,2]
[352477619,1739133038524,-500.0,0.00010684,2]
[352477620,1739133038533,-500.0,0.00010684,2]
[352477621,1739133038543,-500.0,0.00010684,2]
[352477622,1739133038552,-500.0,0.00010684,2]
[352477623,1739133038561,-547.79,0.00010684,2]
[352477624,1739133038571,-517.499639,0.00010684,2]
[352477625,1739133038580,-500.0,0.00010684,2]
[352477626,1739133038592,-500.0,0.00010684,2]
[352477627,1739133038601,-257.18734627,0.000107,2]
[352477628,1739133038610,-500.0,0.00010821,2]
[352477629,1739133038619,-500.0,0.00010821,2]
[352477630,1739133038628,-500.0,0.00010821,2]
[352477631,1739133038638,-500.0,0.00010821,2]
[352477632,1739133038647,-588.9,0.00010821,2]
[352477633,1739133038656,-399.12511439,0.00010821,2]
[352477634,1739133038668,-500.0,0.00010821,2]
[352477635,1739133038677,-500.0,0.00010821,2]
[352477636,1739133038686,-500.0,0.00010821,2]
[352477637,1739133038695,-500.0,0.00010821,2]
[352477638,1739133038704,-547.79,0.00010821,2]
[352477639,1739133038716,-517.499639,0.00010821,2]
[352477640,1739133038725,-500.0,0.00010821,2]
[352477641,1739133038734,-500.0,0.00010821,2]
[352477642,1739133038743,-1278.27821044,0.000109,2]
[352477643,1739133038752,-500.0,0.00010958,2]
[352477644,1739133038762,-500.0,0.00010958,2]
[352477645,1739133038771,-500.0,0.00010958,2]
[352477646,1739133038779,-500.0,0.00010958,2]
[352477647,1739133038788,-588.9,0.00010958,2]
[352477648,1739133038797,-500.0,0.00010958,2]
[352477649,1739133038806,-500.0,0.00010958,2]
[352477650,1739133038815,-500.0,0.00010958,2]
[352477651,1739133038824,-500.0,0.00010958,2]
[352477652,1739133038833,-547.79,0.00010958,2]
[352477653,1739133038842,-517.499639,0.00010958,2]
[352477654,1739133038851,-500.0,0.00010958,2]
[352477655,1739133038860,-500.0,0.00010958,2]
[352477656,1739133038869,-1000.0,0.00011,2]
[352477657,1739133038878,-500.0,0.00011095,2]
[352477658,1739133038888,-374.17,0.00011095,2]
[352477659,1739133038897,-500.0,0.00011095,2]
[352477660,1739133038906,-280.62,0.00011095,2]
[352477661,1739133038915,-588.9,0.00011095,2]
[352477662,1739133038924,-500.0,0.00011095,2]
[352477663,1739133038933,-500.0,0.00011095,2]
[352477664,1739133038942,-500.0,0.00011095,2]
[352477665,1739133038951,-500.0,0.00011095,2]
[352477666,1739133038961,-547.79,0.00011095,2]
[352477667,1739133038971,-517.499639,0.00011095,2]
[352477668,1739133038980,-500.0,0.00011095,2]
[352477669,1739133038989,-285.18,0.00011095,2]
[352477670,1739133038999,-300.0,0.00011098,2]
[352477671,1739133039008,-300.0,0.00011098,2]
[352477672,1739133039017,-300.0,0.00011098,2]
[352477673,1739133039026,-300.0,0.00011098,2]
[352477674,1739133039035,-110986.19217137,0.00011099,2]
[352477675,1739133039045,-272.05767541,0.00011108,2]
[352477676,1739133039054,-203.51,0.00011178,2]
[352477677,1739133039063,-373.76,0.00011208,2]
[352477678,1739133039073,-380.22,0.00011211,2]
[352477679,1739133039082,-372.94,0.00011216,2]
[352477680,1739133039091,-380.99,0.00011223,2]
[352477681,1739133039100,-500.0,0.00011232,2]
[352477682,1739133039110,-381.8,0.00011232,2]
[352477683,1739133039120,-588.9,0.00011232,2]
[352477684,1739133039129,-500.0,0.00011232,2]
[352477685,1739133039139,-500.0,0.00011232,2]
[352477686,1739133039148,-500.0,0.00011232,2]
[352477687,1739133039157,-500.0,0.00011232,2]
[352477688,1739133039166,-547.79,0.00011232,2]
[352477689,1739133039175,-517.499639,0.00011232,2]
[352477692,1739133039348,-500.0,0.00011232,2]
[352477693,1739133039358,-380.72,0.00011233,2]
[352477694,1739133039367,-368.66,0.00011248,2]
[352477695,1739133039376,-368.85,0.00011269,2]
[352477696,1739133039386,-377.26,0.000113,2]
[352477697,1739133039395,-372.04,0.000113,2]
[352477698,1739133039405,-2139.91,0.000113,2]
[352477699,1739133039415,-635.49949673,0.00011352,2]
[352477700,1739133039425,-500.0,0.00011369,2]
[352477701,1739133039435,-588.9,0.00011369,2]
[352477702,1739133039444,-500.0,0.00011369,2]
[352477704,1739133039453,-500.0,0.00011369,2]
[352477706,1739133039464,-500.0,0.00011369,2]
[352477708,1739133039473,-500.0,0.00011369,2]
[352477709,1739133039483,-547.79,0.00011369,2]
[352477710,1739133039492,-500.0,0.00011369,2]
[352477711,1739133039501,-500.0,0.00011506,2]
[352477712,1739133039510,-588.9,0.00011506,2]
[352477713,1739133039520,-500.0,0.00011506,2]
[352477714,1739133039528,-500.0,0.00011506,2]
[352477715,1739133039538,-500.0,0.00011506,2]
[352477716,1739133039547,-500.0,0.00011506,2]
[352477717,1739133039558,-547.79,0.00011506,2]
[352477718,1739133039567,-468.27,0.00011506,2]
[352477719,1739133039577,-2751.0,0.00011507,2]
[352477720,1739133039590,-1000.0,0.00011638,2]
[352477721,1739133039599,-1000.0,0.00011638,2]
[352477722,1739133039609,-1000.0,0.00011638,2]
[352477723,1739133039618,-1000.0,0.00011638,2]
[352477724,1739133039628,-1000.0,0.00011638,2]
[352477725,1739133039637,-1000.0,0.00011638,2]
[352477726,1739133039647,-1000.0,0.00011638,2]
[352477727,1739133039657,-1000.0,0.00011638,2]